[Event "Early-Titled-Tuesday-Blitz-February-27-2024"]
[Site "Chess.com"]
[Date "2024.02.27"]
[Round "2"]
[White "Fumitoks"]
[Black "kidagent"]
[Result "1/2-1/2"]
[WhiteElo "2614"]
[BlackElo "2317"]
[TimeControl "180+1"]
[EndTime "8:18:14 PST"]
[Termination "Game drawn - insufficient material"]

1. e4 {[%clk 0:02:59.4]} 1... c6 {[%clk 0:02:48]} 2. d3 {[%clk 0:02:57.2]} 2...
d5 {[%clk 0:02:47.8]} 3. Nd2 {[%clk 0:02:57.6]} 3... e5 {[%clk 0:02:43.3]} 4. g3
{[%clk 0:02:57.5]} 4... Nf6 {[%clk 0:02:42.5]} 5. Bg2 {[%clk 0:02:57.9]} 5...
Be6 {[%clk 0:02:41.8]} 6. Ngf3 {[%clk 0:02:58.2]} 6... Nbd7 {[%clk 0:02:41.2]}
7. O-O {[%clk 0:02:58.4]} 7... Bc5 {[%clk 0:02:40.1]} 8. c3 {[%clk 0:02:57.4]}
8... O-O {[%clk 0:02:38.4]} 9. h3 {[%clk 0:02:56.1]} 9... Qb6 {[%clk 0:02:35.4]}
10. Qe2 {[%clk 0:02:50]} 10... Rfe8 {[%clk 0:02:32.8]} 11. Kh2 {[%clk
0:02:31.8]} 11... Rad8 {[%clk 0:02:29.3]} 12. Nb3 {[%clk 0:02:29.3]} 12... dxe4
{[%clk 0:02:24.9]} 13. dxe4 {[%clk 0:02:23.4]} 13... Bxb3 {[%clk 0:02:23.5]} 14.
axb3 {[%clk 0:02:24.3]} 14... Qxb3 {[%clk 0:02:23.4]} 15. Be3 {[%clk 0:02:17.5]}
15... Bxe3 {[%clk 0:02:20.3]} 16. Qxe3 {[%clk 0:02:18.4]} 16... a6 {[%clk
0:02:17.3]} 17. Nd2 {[%clk 0:02:04.4]} 17... Qb6 {[%clk 0:02:13.3]} 18. Qe2
{[%clk 0:01:56.1]} 18... Nc5 {[%clk 0:02:08.9]} 19. b4 {[%clk 0:01:38.4]} 19...
Rxd2 {[%clk 0:01:58.9]} 20. Qxd2 {[%clk 0:01:39.3]} 20... Nb3 {[%clk 0:01:58.7]}
21. Qa2 {[%clk 0:01:22.8]} 21... Nxa1 {[%clk 0:01:57.8]} 22. Rxa1 {[%clk
0:01:23.7]} 22... Rd8 {[%clk 0:01:54.9]} 23. Re1 {[%clk 0:01:11.6]} 23... Rd3
{[%clk 0:01:53.9]} 24. Qc2 {[%clk 0:01:11.1]} 24... Qd8 {[%clk 0:01:53.1]} 25.
Re2 {[%clk 0:00:59.6]} 25... Rd1 {[%clk 0:01:45.5]} 26. f4 {[%clk 0:00:25.8]}
26... exf4 {[%clk 0:01:35]} 27. gxf4 {[%clk 0:00:26.7]} 27... Nh5 {[%clk
0:01:30.1]} 28. Rf2 {[%clk 0:00:19.1]} 28... Rd7 {[%clk 0:00:57.8]} 29. Qe2
{[%clk 0:00:17.5]} 29... g6 {[%clk 0:00:56.1]} 30. f5 {[%clk 0:00:10.4]} 30...
Qh4 {[%clk 0:00:54.1]} 31. Qf3 {[%clk 0:00:09.1]} 31... g5 {[%clk 0:00:48.3]}
32. Kg1 {[%clk 0:00:04.3]} 32... Nf4 {[%clk 0:00:43.6]} 33. e5 {[%clk
0:00:04.5]} 33... Rd5 {[%clk 0:00:35.7]} 34. e6 {[%clk 0:00:03.9]} 34... fxe6
{[%clk 0:00:32.2]} 35. fxe6 {[%clk 0:00:04.8]} 35... Re5 {[%clk 0:00:31.5]} 36.
Kh2 {[%clk 0:00:03.1]} 36... Rxe6 {[%clk 0:00:30.5]} 37. Rd2 {[%clk 0:00:03.5]}
37... Qe1 {[%clk 0:00:24.1]} 38. Rd8+ {[%clk 0:00:03.4]} 38... Re8 {[%clk
0:00:24.3]} 39. Rxe8+ {[%clk 0:00:03.8]} 39... Qxe8 {[%clk 0:00:24.6]} 40. Qg4
{[%clk 0:00:04.7]} 40... Qe5 {[%clk 0:00:23.7]} 41. Qc8+ {[%clk 0:00:04.8]}
41... Kg7 {[%clk 0:00:23.6]} 42. Qxb7+ {[%clk 0:00:05.7]} 42... Kg6 {[%clk
0:00:21]} 43. Qxc6+ {[%clk 0:00:06]} 43... Kf5 {[%clk 0:00:20.5]} 44. Qf3 {[%clk
0:00:05.8]} 44... h5 {[%clk 0:00:19]} 45. Kg1 {[%clk 0:00:05.1]} 45... g4 {[%clk
0:00:19]} 46. hxg4+ {[%clk 0:00:03.9]} 46... hxg4 {[%clk 0:00:19.9]} 47. Qf2
{[%clk 0:00:04.5]} 47... Qxc3 {[%clk 0:00:17.7]} 48. Qc5+ {[%clk 0:00:04.2]}
48... Qxc5+ {[%clk 0:00:17.2]} 49. bxc5 {[%clk 0:00:05.1]} 49... Ke5 {[%clk
0:00:17.5]} 50. c6 {[%clk 0:00:05.2]} 50... Kd6 {[%clk 0:00:17.2]} 51. Be4
{[%clk 0:00:05.8]} 51... Ne6 {[%clk 0:00:16.7]} 52. Kf2 {[%clk 0:00:06.2]} 52...
Nd4 {[%clk 0:00:15.8]} 53. Kg3 {[%clk 0:00:06.2]} 53... Nxc6 {[%clk 0:00:15.7]}
54. Kxg4 {[%clk 0:00:06.8]} 54... Nb4 {[%clk 0:00:15.8]} 55. Kf4 {[%clk
0:00:06.3]} 55... Kc5 {[%clk 0:00:16.3]} 56. Ke3 {[%clk 0:00:06.8]} 56... Kc4
{[%clk 0:00:16.2]} 57. Kd2 {[%clk 0:00:07.2]} 57... Kb3 {[%clk 0:00:16.1]} 58.
Bh7 {[%clk 0:00:07.7]} 58... a5 {[%clk 0:00:16.3]} 59. Bg8+ {[%clk 0:00:08.6]}
59... Kb2 {[%clk 0:00:15.9]} 60. Ke3 {[%clk 0:00:08.9]} 60... a4 {[%clk
0:00:16.2]} 61. Kd4 {[%clk 0:00:09.3]} 61... a3 {[%clk 0:00:16.3]} 62. Kc5
{[%clk 0:00:09.7]} 62... Nc2 {[%clk 0:00:16.4]} 63. Kb5 {[%clk 0:00:10.1]} 63...
Na1 {[%clk 0:00:16.4]} 64. Ka4 {[%clk 0:00:10.3]} 64... Nb3 {[%clk 0:00:17]} 65.
Bxb3 {[%clk 0:00:10.6]} 65... a2 {[%clk 0:00:17.3]} 66. Bxa2 {[%clk 0:00:11]}
1/2-1/2

[Event "Early-Titled-Tuesday-Blitz-February-27-2024"]
[Site "Chess.com"]
[Date "2024.02.27"]
[Round "2"]
[White "Lion-Al-Messi"]
[Black "Akylbek2021"]
[Result "0-1"]
[WhiteElo "2505"]
[BlackElo "2291"]
[TimeControl "180+1"]
[EndTime "8:18:14 PST"]
[Termination "Akylbek2021 won by checkmate"]

1. e4 {[%clk 0:03:00.9]} 1... Nc6 {[%clk 0:02:58.3]} 2. Nf3 {[%clk 0:03:01.3]}
2... e5 {[%clk 0:02:58]} 3. Bb5 {[%clk 0:03:00.6]} 3... a6 {[%clk 0:02:57.9]} 4.
Ba4 {[%clk 0:03:00.7]} 4... Nf6 {[%clk 0:02:57.7]} 5. O-O {[%clk 0:03:00.4]}
5... Be7 {[%clk 0:02:58.5]} 6. d3 {[%clk 0:03:00.9]} 6... b5 {[%clk 0:02:57.5]}
7. Bb3 {[%clk 0:03:00.8]} 7... O-O {[%clk 0:02:58.3]} 8. Nc3 {[%clk 0:03:00.7]}
8... d6 {[%clk 0:02:57.7]} 9. a3 {[%clk 0:03:01.2]} 9... h6 {[%clk 0:02:56.2]}
10. Be3 {[%clk 0:02:50.5]} 10... Be6 {[%clk 0:02:55.9]} 11. Bxe6 {[%clk
0:02:49.7]} 11... fxe6 {[%clk 0:02:56.8]} 12. d4 {[%clk 0:02:48.7]} 12... exd4
{[%clk 0:02:50.9]} 13. Nxd4 {[%clk 0:02:49.6]} 13... Nxd4 {[%clk 0:02:47.1]} 14.
Qxd4 {[%clk 0:02:50.5]} 14... Ng4 {[%clk 0:02:41]} 15. h3 {[%clk 0:02:48.5]}
15... Bf6 {[%clk 0:02:32.3]} 16. Qd3 {[%clk 0:02:48.3]} 16... Ne5 {[%clk
0:02:28.9]} 17. Qe2 {[%clk 0:02:48.5]} 17... Nc4 {[%clk 0:02:29.4]} 18. Qg4
{[%clk 0:02:47.6]} 18... Qe7 {[%clk 0:02:19.7]} 19. Bxh6 {[%clk 0:02:42.3]}
19... Ne5 {[%clk 0:02:05.6]} 20. Qg3 {[%clk 0:02:41.4]} 20... Bh4 {[%clk
0:02:04.6]} 21. Qe3 {[%clk 0:02:38.4]} 21... gxh6 {[%clk 0:01:57.4]} 22. Qxh6
{[%clk 0:02:39.3]} 22... Bg5 {[%clk 0:01:31.3]} 23. Qh5 {[%clk 0:02:38.9]} 23...
Qf6 {[%clk 0:01:26.3]} 24. Qe2 {[%clk 0:02:29.6]} 24... Nc4 {[%clk 0:01:23.4]}
25. Qg4 {[%clk 0:02:29.3]} 25... Kh8 {[%clk 0:01:13.9]} 26. f4 {[%clk
0:02:13.3]} 26... Bxf4 {[%clk 0:01:12.5]} 27. Rf3 {[%clk 0:01:33.5]} 27... Ne3
{[%clk 0:00:53.2]} 28. Qh5+ {[%clk 0:01:27.3]} 28... Qh6 {[%clk 0:00:53.3]} 29.
Qxh6+ {[%clk 0:01:24.9]} 29... Bxh6 {[%clk 0:00:54.2]} 30. Rg3 {[%clk
0:01:17.4]} 30... Nxc2 {[%clk 0:00:51.3]} 31. Rd1 {[%clk 0:01:17.5]} 31... Ne3
{[%clk 0:00:42]} 32. Re1 {[%clk 0:01:16.9]} 32... Nc2 {[%clk 0:00:36]} 33. Rd1
{[%clk 0:01:16.7]} 33... Kh7 {[%clk 0:00:35.6]} 34. Ne2 {[%clk 0:01:07.6]} 34...
Ne3 {[%clk 0:00:34.6]} 35. Rc1 {[%clk 0:00:55]} 35... c5 {[%clk 0:00:30.6]} 36.
e5 {[%clk 0:00:49.7]} 36... Nf5 {[%clk 0:00:27.2]} 37. Rd1 {[%clk 0:00:41.9]}
37... Nxg3 {[%clk 0:00:26.2]} 38. Nxg3 {[%clk 0:00:42.1]} 38... d5 {[%clk
0:00:26.3]} 39. Nh5 {[%clk 0:00:41.8]} 39... Rf5 {[%clk 0:00:24.8]} 40. Nf6+
{[%clk 0:00:41.9]} 40... Kg6 {[%clk 0:00:24.4]} 41. Ng4 {[%clk 0:00:42.1]} 41...
Raf8 {[%clk 0:00:23.4]} 42. b3 {[%clk 0:00:26.6]} 42... d4 {[%clk 0:00:23.6]}
43. b4 {[%clk 0:00:26.5]} 43... Be3+ {[%clk 0:00:20.1]} 44. Kh2 {[%clk
0:00:26.3]} 44... cxb4 {[%clk 0:00:20.2]} 45. axb4 {[%clk 0:00:24.5]} 45... Bf4+
{[%clk 0:00:20.6]} 46. Kg1 {[%clk 0:00:23.3]} 46... Bxe5 {[%clk 0:00:21.2]} 47.
Re1 {[%clk 0:00:22.9]} 47... d3 {[%clk 0:00:04.3]} 48. Nxe5+ {[%clk 0:00:20.5]}
48... Rxe5 {[%clk 0:00:04.9]} 49. Rxe5 {[%clk 0:00:21]} 49... Rd8 {[%clk
0:00:04.2]} 50. Rxe6+ {[%clk 0:00:18.8]} 50... Kf5 {[%clk 0:00:04.7]} 51. Re1
{[%clk 0:00:19.7]} 51... d2 {[%clk 0:00:05.3]} 52. Rd1 {[%clk 0:00:19.8]} 52...
Ke4 {[%clk 0:00:06]} 53. Kf2 {[%clk 0:00:13.7]} 53... Kd3 {[%clk 0:00:06.6]} 54.
Ra1 {[%clk 0:00:13.4]} 54... Kc2 {[%clk 0:00:03.8]} 55. Ra2+ {[%clk 0:00:14.3]}
55... Kb3 {[%clk 0:00:03.5]} 56. Rxa6 {[%clk 0:00:15.2]} 56... d1=Q {[%clk
0:00:03.3]} 57. Re6 {[%clk 0:00:16.1]} 57... Kxb4 {[%clk 0:00:03.7]} 58. Re2
{[%clk 0:00:17]} 58... Qd4+ {[%clk 0:00:03.8]} 59. Re3 {[%clk 0:00:17.5]} 59...
Rf8+ {[%clk 0:00:04.4]} 60. Ke2 {[%clk 0:00:17.5]} 60... Qc4+ {[%clk 0:00:04.7]}
61. Kd2 {[%clk 0:00:17.3]} 61... Rd8+ {[%clk 0:00:05]} 62. Ke1 {[%clk
0:00:17.2]} 62... Qd4 {[%clk 0:00:03.7]} 63. Kf2 {[%clk 0:00:17.8]} 63... Re8
{[%clk 0:00:03]} 64. Ke2 {[%clk 0:00:18.7]} 64... Qxe3+ {[%clk 0:00:03.5]} 65.
Kf1 {[%clk 0:00:19.5]} 65... Rf8# {[%clk 0:00:04.2]} 0-1

[Event "Early-Titled-Tuesday-Blitz-February-27-2024"]
[Site "Chess.com"]
[Date "2024.02.27"]
[Round "2"]
[White "JiiHart"]
[Black "LeoLV10"]
[Result "0-1"]
[WhiteElo "2155"]
[BlackElo "2482"]
[TimeControl "180+1"]
[EndTime "8:18:20 PST"]
[Termination "LeoLV10 won on time"]

1. e4 {[%clk 0:02:53.3]} 1... c6 {[%clk 0:02:59.6]} 2. d4 {[%clk 0:02:53]} 2...
d5 {[%clk 0:03:00.5]} 3. Nc3 {[%clk 0:02:53.4]} 3... dxe4 {[%clk 0:03:00.5]} 4.
Nxe4 {[%clk 0:02:54.3]} 4... Nf6 {[%clk 0:03:00.9]} 5. Nxf6+ {[%clk 0:02:54.7]}
5... exf6 {[%clk 0:03:01.8]} 6. Bf4 {[%clk 0:02:54.9]} 6... Bd6 {[%clk
0:03:02.3]} 7. Qf3 {[%clk 0:02:55.1]} 7... O-O {[%clk 0:03:00.4]} 8. Bd3 {[%clk
0:02:55.3]} 8... Re8+ {[%clk 0:03:00.5]} 9. Ne2 {[%clk 0:02:55.6]} 9... Na6
{[%clk 0:02:52]} 10. c3 {[%clk 0:02:54.1]} 10... Nc7 {[%clk 0:02:51.1]} 11. h4
{[%clk 0:02:53]} 11... Nd5 {[%clk 0:02:38.5]} 12. Bd2 {[%clk 0:02:50]} 12... b5
{[%clk 0:02:34]} 13. h5 {[%clk 0:02:49.1]} 13... Rb8 {[%clk 0:02:25.2]} 14. h6
{[%clk 0:02:47.7]} 14... g6 {[%clk 0:02:25.3]} 15. Kf1 {[%clk 0:01:49.1]} 15...
Be6 {[%clk 0:02:22.2]} 16. b3 {[%clk 0:01:31.9]} 16... Qd7 {[%clk 0:01:44.9]}
17. Rh4 {[%clk 0:01:27.9]} 17... f5 {[%clk 0:01:29.8]} 18. Rc1 {[%clk 0:00:58]}
18... Be7 {[%clk 0:01:16.7]} 19. Rh1 {[%clk 0:00:53.9]} 19... Nf6 {[%clk
0:01:04.1]} 20. c4 {[%clk 0:00:45.3]} 20... Ba3 {[%clk 0:01:01.5]} 21. Rd1
{[%clk 0:00:38.1]} 21... bxc4 {[%clk 0:01:00.7]} 22. Bxc4 {[%clk 0:00:32.5]}
22... Bd5 {[%clk 0:00:49.3]} 23. Bxd5 {[%clk 0:00:28.5]} 23... Nxd5 {[%clk
0:00:50.2]} 24. Nf4 {[%clk 0:00:26.1]} 24... Nf6 {[%clk 0:00:44.1]} 25. Nh5
{[%clk 0:00:22.6]} 25... Nxh5 {[%clk 0:00:22.6]} 26. Rxh5 {[%clk 0:00:22]} 26...
Rb5 {[%clk 0:00:15.2]} 27. Rh4 {[%clk 0:00:20.4]} 27... Rd5 {[%clk 0:00:14.3]}
28. Be3 {[%clk 0:00:19.6]} 28... Bb2 {[%clk 0:00:14.2]} 29. Kg1 {[%clk
0:00:18.1]} 29... Ba3 {[%clk 0:00:13.8]} 30. Rf4 {[%clk 0:00:17.3]} 30... Bd6
{[%clk 0:00:13.9]} 31. Rh4 {[%clk 0:00:17.1]} 31... Be7 {[%clk 0:00:14.5]} 32.
Rh3 {[%clk 0:00:16.1]} 32... Bf6 {[%clk 0:00:14.8]} 33. Rg3 {[%clk 0:00:15]}
33... Re4 {[%clk 0:00:14.3]} 34. Bg5 {[%clk 0:00:13]} 34... Bxd4 {[%clk
0:00:11.8]} 35. Rxd4 {[%clk 0:00:11.4]} 35... Rdxd4 {[%clk 0:00:11.4]} 36. Bf6
{[%clk 0:00:11.6]} 36... Rd1+ {[%clk 0:00:11.5]} 37. Kh2 {[%clk 0:00:12.1]}
37... Rd5 {[%clk 0:00:09.5]} 38. Bc3 {[%clk 0:00:11.3]} 38... Rh4+ {[%clk
0:00:08.3]} 39. Rh3 {[%clk 0:00:10.7]} 39... Rxh3+ {[%clk 0:00:08.5]} 40. gxh3
{[%clk 0:00:09.2]} 40... Qd6+ {[%clk 0:00:08.7]} 41. Kg2 {[%clk 0:00:07.9]}
41... Qe6 {[%clk 0:00:08.7]} 42. Bb4 {[%clk 0:00:06]} 42... Qe4 {[%clk
0:00:08.5]} 43. Qxe4 {[%clk 0:00:04.2]} 43... fxe4 {[%clk 0:00:09.4]} 44. Be7
{[%clk 0:00:03.4]} 44... f5 {[%clk 0:00:09.8]} 45. Bg5 {[%clk 0:00:03.5]} 45...
a5 {[%clk 0:00:10.3]} 46. Be3 {[%clk 0:00:03.7]} 46... Rb5 {[%clk 0:00:10.4]}
47. Kg3 {[%clk 0:00:03.8]} 47... a4 {[%clk 0:00:10.8]} 48. bxa4 {[%clk
0:00:04.3]} 48... Ra5 {[%clk 0:00:11.3]} 49. Kf4 {[%clk 0:00:05.2]} 49... Rxa4
{[%clk 0:00:12.2]} 50. Ke5 {[%clk 0:00:05.7]} 50... Kf7 {[%clk 0:00:12.1]} 51.
Kd6 {[%clk 0:00:06.1]} 51... Rxa2 {[%clk 0:00:12.6]} 52. Kxc6 {[%clk 0:00:06.5]}
52... Rc2+ {[%clk 0:00:12.6]} 53. Kd5 {[%clk 0:00:06.8]} 53... Ra2 {[%clk
0:00:09.1]} 54. Ke5 {[%clk 0:00:06.3]} 54... Ra1 {[%clk 0:00:09.5]} 55. Kf4
{[%clk 0:00:06.4]} 55... Rg1 {[%clk 0:00:09.3]} 56. Bd4 {[%clk 0:00:03.7]} 56...
Rd1 {[%clk 0:00:09]} 57. Be3 {[%clk 0:00:03.9]} 57... Rd3 {[%clk 0:00:09.4]} 58.
Kg5 {[%clk 0:00:01.5]} 58... Ke6 {[%clk 0:00:09.3]} 59. Kf4 {[%clk 0:00:01.5]}
59... Kf6 {[%clk 0:00:09.4]} 60. h4 {[%clk 0:00:01.6]} 60... Ra3 {[%clk
0:00:08.8]} 61. Kg3 {[%clk 0:00:01.1]} 61... Ke5 {[%clk 0:00:07.8]} 0-1

[Event "Early-Titled-Tuesday-Blitz-February-27-2024"]
[Site "Chess.com"]
[Date "2024.02.27"]
[Round "2"]
[White "JoliyRoger"]
[Black "Cayse"]
[Result "0-1"]
[WhiteElo "2419"]
[BlackElo "2823"]
[TimeControl "180+1"]
[EndTime "8:18:25 PST"]
[Termination "Cayse won on time"]

1. d4 {[%clk 0:03:00.9]} 1... Nf6 {[%clk 0:02:58.3]} 2. c4 {[%clk 0:03:00.6]}
2... g6 {[%clk 0:02:58.9]} 3. Nc3 {[%clk 0:03:00.7]} 3... d5 {[%clk 0:02:59.2]}
4. Nf3 {[%clk 0:02:58.3]} 4... Bg7 {[%clk 0:02:58.9]} 5. Bg5 {[%clk 0:02:58.7]}
5... Ne4 {[%clk 0:02:58.5]} 6. cxd5 {[%clk 0:02:59.1]} 6... Nxg5 {[%clk
0:02:43.6]} 7. Nxg5 {[%clk 0:02:59]} 7... e6 {[%clk 0:02:44]} 8. Nf3 {[%clk
0:02:59]} 8... exd5 {[%clk 0:02:44.1]} 9. e3 {[%clk 0:02:59.7]} 9... c6 {[%clk
0:02:43.5]} 10. b4 {[%clk 0:03:00.2]} 10... O-O {[%clk 0:02:42.4]} 11. Qb3
{[%clk 0:02:59.7]} 11... Re8 {[%clk 0:02:37.3]} 12. Be2 {[%clk 0:02:59.7]} 12...
Nd7 {[%clk 0:02:32.5]} 13. O-O {[%clk 0:02:59.8]} 13... Nb6 {[%clk 0:02:29.9]}
14. b5 {[%clk 0:02:51.6]} 14... cxb5 {[%clk 0:02:24.2]} 15. Bxb5 {[%clk
0:02:42.1]} 15... Re7 {[%clk 0:02:18.7]} 16. Rfc1 {[%clk 0:02:27]} 16... Bg4
{[%clk 0:02:17.2]} 17. Nd2 {[%clk 0:02:27.6]} 17... Rc7 {[%clk 0:02:13.1]} 18.
a4 {[%clk 0:02:21.1]} 18... Rac8 {[%clk 0:02:12.5]} 19. Na2 {[%clk 0:01:29.9]}
19... Nc4 {[%clk 0:02:00]} 20. Nxc4 {[%clk 0:01:13.1]} 20... dxc4 {[%clk
0:01:59.8]} 21. Bxc4 {[%clk 0:01:02.8]} 21... Qg5 {[%clk 0:02:00.2]} 22. Bf1
{[%clk 0:00:32.2]} 22... Rxc1 {[%clk 0:01:52]} 23. Rxc1 {[%clk 0:00:26]} 23...
Rxc1 {[%clk 0:01:52.1]} 24. Nxc1 {[%clk 0:00:26.6]} 24... Bxd4 {[%clk 0:01:53]}
25. exd4 {[%clk 0:00:17.7]} 25... Qxc1 {[%clk 0:01:52.2]} 26. Qxb7 {[%clk
0:00:18.4]} 26... Kg7 {[%clk 0:01:42.3]} 27. Qb8 {[%clk 0:00:18.4]} 27... h5
{[%clk 0:01:26.1]} 28. Qe5+ {[%clk 0:00:16.7]} 28... Kh7 {[%clk 0:01:26.3]} 29.
h3 {[%clk 0:00:16.5]} 29... Bf5 {[%clk 0:01:24.5]} 30. Qe3 {[%clk 0:00:16.4]}
30... Qa1 {[%clk 0:01:23.4]} 31. Qb3 {[%clk 0:00:15.1]} 31... Kg7 {[%clk
0:01:21.1]} 32. d5 {[%clk 0:00:13.8]} 32... Qd4 {[%clk 0:01:20.7]} 33. a5 {[%clk
0:00:12.2]} 33... Be4 {[%clk 0:01:20.2]} 34. Bc4 {[%clk 0:00:10.1]} 34... h4
{[%clk 0:01:04.5]} 35. a6 {[%clk 0:00:10]} 35... f5 {[%clk 0:00:48.2]} 36. Qa2
{[%clk 0:00:10.2]} 36... Kh6 {[%clk 0:00:46.4]} 37. Qb3 {[%clk 0:00:09.1]} 37...
f4 {[%clk 0:00:45.2]} 38. Qa2 {[%clk 0:00:08.4]} 38... Qc3 {[%clk 0:00:36.9]}
39. Qb3 {[%clk 0:00:07.9]} 39... Qe1+ {[%clk 0:00:34.5]} 40. Bf1 {[%clk
0:00:07.8]} 40... Qd2 {[%clk 0:00:33.1]} 41. Qc4 {[%clk 0:00:08.1]} 41... Bxd5
{[%clk 0:00:31.9]} 42. Qc5 {[%clk 0:00:07.9]} 42... f3 {[%clk 0:00:28.6]} 43.
Qf8+ {[%clk 0:00:07.2]} 43... Kg5 {[%clk 0:00:24.7]} 44. Qe7+ {[%clk 0:00:07.7]}
44... Kh5 {[%clk 0:00:20.5]} 45. Qe5+ {[%clk 0:00:06.1]} 45... Qg5 {[%clk
0:00:20.3]} 46. Qh8+ {[%clk 0:00:06.5]} 46... Qh6 {[%clk 0:00:19.2]} 47. Qe5+
{[%clk 0:00:07]} 47... Qg5 {[%clk 0:00:18.4]} 48. Qh8+ {[%clk 0:00:07.4]} 48...
Qh6 {[%clk 0:00:18.7]} 49. Qd8 {[%clk 0:00:07.9]} 49... Be4 {[%clk 0:00:11.2]}
50. Qc7 {[%clk 0:00:05.3]} 50... g5 {[%clk 0:00:05.2]} 51. Qe5 {[%clk
0:00:04.7]} 51... Qg6 {[%clk 0:00:04.6]} 52. gxf3 {[%clk 0:00:04.2]} 52... Bxf3
{[%clk 0:00:04]} 53. Qh8+ {[%clk 0:00:04.9]} 53... Qh6 {[%clk 0:00:04.3]} 54.
Qf6 {[%clk 0:00:05.1]} 54... Qxf6 {[%clk 0:00:04.1]} 0-1

[Event "Early-Titled-Tuesday-Blitz-February-27-2024"]
[Site "Chess.com"]
[Date "2024.02.27"]
[Round "2"]
[White "Felix-Rose"]
[Black "LiadCuba"]
[Result "1-0"]
[WhiteElo "2243"]
[BlackElo "2493"]
[TimeControl "180+1"]
[EndTime "8:18:25 PST"]
[Termination "Felix-Rose won by checkmate"]

1. e4 {[%clk 0:02:59.9]} 1... d5 {[%clk 0:02:56.1]} 2. exd5 {[%clk 0:02:59.5]}
2... Nf6 {[%clk 0:02:56.7]} 3. d4 {[%clk 0:02:57.6]} 3... Nxd5 {[%clk
0:02:55.9]} 4. Nf3 {[%clk 0:02:57.6]} 4... Bf5 {[%clk 0:02:56]} 5. Nh4 {[%clk
0:02:50.1]} 5... Bg6 {[%clk 0:02:35.2]} 6. Nxg6 {[%clk 0:02:42.3]} 6... hxg6
{[%clk 0:02:36.1]} 7. c4 {[%clk 0:02:37.7]} 7... Nf6 {[%clk 0:02:35.5]} 8. Nc3
{[%clk 0:02:34.8]} 8... e6 {[%clk 0:02:32.1]} 9. g3 {[%clk 0:02:31.6]} 9... c5
{[%clk 0:02:04.8]} 10. Bg2 {[%clk 0:02:21.3]} 10... Nc6 {[%clk 0:02:04.1]} 11.
Qa4 {[%clk 0:01:42.1]} 11... cxd4 {[%clk 0:01:49.2]} 12. Bxc6+ {[%clk
0:01:37.7]} 12... bxc6 {[%clk 0:01:50.1]} 13. Qxc6+ {[%clk 0:01:38]} 13... Nd7
{[%clk 0:01:50.1]} 14. Nb5 {[%clk 0:01:37.7]} 14... Rc8 {[%clk 0:01:49.8]} 15.
Qb7 {[%clk 0:01:06.8]} 15... Bb4+ {[%clk 0:01:42.4]} 16. Bd2 {[%clk 0:01:06.2]}
16... Bxd2+ {[%clk 0:01:27.5]} 17. Kxd2 {[%clk 0:01:07.1]} 17... O-O {[%clk
0:01:28.2]} 18. b3 {[%clk 0:00:55.3]} 18... e5 {[%clk 0:01:17.7]} 19. Qxa7
{[%clk 0:00:47.4]} 19... Nc5 {[%clk 0:01:08.9]} 20. h4 {[%clk 0:00:37.8]} 20...
Qf6 {[%clk 0:01:00.7]} 21. Rhf1 {[%clk 0:00:22.7]} 21... Qf3 {[%clk 0:01:00.2]}
22. Rae1 {[%clk 0:00:17.8]} 22... Ne4+ {[%clk 0:00:53.9]} 23. Kc2 {[%clk
0:00:14.6]} 23... d3+ {[%clk 0:00:47.6]} 24. Kb2 {[%clk 0:00:14.4]} 24... Nc5
{[%clk 0:00:16.8]} 25. Re3 {[%clk 0:00:12.4]} 25... Qg2 {[%clk 0:00:16.9]} 26.
Ree1 {[%clk 0:00:10.7]} 26... e4 {[%clk 0:00:13.3]} 27. Nc7 {[%clk 0:00:10.5]}
27... d2 {[%clk 0:00:09.3]} 28. Rd1 {[%clk 0:00:10.3]} 28... Nd3+ {[%clk
0:00:09.2]} 29. Ka1 {[%clk 0:00:10.4]} 29... e3 {[%clk 0:00:06.8]} 30. fxe3
{[%clk 0:00:10.5]} 30... Rxc7 {[%clk 0:00:06]} 31. Qxc7 {[%clk 0:00:10.2]} 31...
Nf2 {[%clk 0:00:05]} 32. Qf4 {[%clk 0:00:08.5]} 32... Nxd1 {[%clk 0:00:04.8]}
33. Rxd1 {[%clk 0:00:09.2]} 33... Qe2 {[%clk 0:00:04.5]} 34. Qf1 {[%clk
0:00:08.5]} 34... Qxe3 {[%clk 0:00:04.9]} 35. Qg2 {[%clk 0:00:06.7]} 35... Qc3+
{[%clk 0:00:04.1]} 36. Kb1 {[%clk 0:00:07.1]} 36... Qd3+ {[%clk 0:00:04.1]} 37.
Kb2 {[%clk 0:00:07]} 37... Rd8 {[%clk 0:00:04.3]} 38. Qf2 {[%clk 0:00:07.4]}
38... Qd6 {[%clk 0:00:02.4]} 39. Kc2 {[%clk 0:00:07.2]} 39... Qa3 {[%clk
0:00:01.9]} 40. Kb1 {[%clk 0:00:06.5]} 40... Qb4 {[%clk 0:00:01.8]} 41. Kc2
{[%clk 0:00:06.4]} 41... Qa5 {[%clk 0:00:02.1]} 42. Kb1 {[%clk 0:00:06.6]} 42...
Qc3 {[%clk 0:00:01.8]} 43. h5 {[%clk 0:00:05.5]} 43... gxh5 {[%clk 0:00:01.7]}
44. Qe2 {[%clk 0:00:06.3]} 44... Qd4 {[%clk 0:00:01]} 45. Kc2 {[%clk 0:00:06.4]}
45... Qa7 {[%clk 0:00:01.2]} 46. a4 {[%clk 0:00:05.9]} 46... Qd4 {[%clk
0:00:01.1]} 47. Rxd2 {[%clk 0:00:06.5]} 47... Qxd2+ {[%clk 0:00:01.9]} 48. Qxd2
{[%clk 0:00:07.4]} 48... Rxd2+ {[%clk 0:00:02.7]} 49. Kxd2 {[%clk 0:00:08.2]}
49... g5 {[%clk 0:00:03.6]} 50. Ke3 {[%clk 0:00:08.6]} 50... Kf8 {[%clk
0:00:04.5]} 51. c5 {[%clk 0:00:08.9]} 51... Ke7 {[%clk 0:00:05.4]} 52. b4 {[%clk
0:00:09.6]} 52... Kd7 {[%clk 0:00:06.3]} 53. b5 {[%clk 0:00:10.1]} 53... Kc7
{[%clk 0:00:06.9]} 54. a5 {[%clk 0:00:10.8]} 54... f5 {[%clk 0:00:07.4]} 55. a6
{[%clk 0:00:11.1]} 55... h4 {[%clk 0:00:07.3]} 56. gxh4 {[%clk 0:00:11.5]} 56...
gxh4 {[%clk 0:00:08.2]} 57. Kf3 {[%clk 0:00:12.2]} 57... Kc8 {[%clk 0:00:07.3]}
58. b6 {[%clk 0:00:12.8]} 58... Kb8 {[%clk 0:00:07.5]} 59. c6 {[%clk 0:00:13.1]}
59... h3 {[%clk 0:00:08]} 60. c7+ {[%clk 0:00:13.2]} 60... Kc8 {[%clk
0:00:08.5]} 61. a7 {[%clk 0:00:13.4]} 61... Kb7 {[%clk 0:00:08.9]} 62. a8=Q+
{[%clk 0:00:13.3]} 62... Kxa8 {[%clk 0:00:09.3]} 63. c8=Q# {[%clk 0:00:14.1]}
1-0